fUST/lending_fUST_20240820
["ID","MTS","AMOUNT","RATE_DAILY","PERIOD"]
[335360282,1724159439244,-500.0,0.00016438,2]
[335360283,1724159439253,-500.0,0.00016438,2]
[335360284,1724159439263,-500.0,0.00016438,2]
[335360285,1724159439274,-500.0,0.00016438,2]
[335360286,1724159439284,-500.0,0.00016438,2]
[335360287,1724159439295,-500.0,0.00016438,2]
[335360288,1724159439306,-500.0,0.00016438,2]
[335360289,1724159439316,-500.0,0.00016438,2]
[335360290,1724159439326,-500.0,0.00016438,2]
[335360291,1724159439337,-500.0,0.00016438,2]
[335360292,1724159439347,-2356.88,0.00016438,2]
[335360293,1724159439358,-500.0,0.00016438,2]
[335360294,1724159439368,-500.0,0.00016438,2]
[335360295,1724159439378,-500.0,0.00016438,2]
[335360296,1724159439388,-500.0,0.00016438,2]
[335360297,1724159439398,-500.0,0.00016438,2]
[335360298,1724159439408,-500.0,0.00016438,2]
[335360299,1724159439418,-500.0,0.00016438,2]
[335360300,1724159439428,-500.0,0.00016438,2]
[335360301,1724159439437,-500.0,0.00016438,2]
[335360302,1724159439449,-500.0,0.00016438,2]
[335360303,1724159439460,-500.0,0.00016438,2]
[335360304,1724159439470,-500.0,0.00016438,2]
[335360305,1724159439482,-500.0,0.00016438,2]
[335360306,1724159439492,-446.36646732,0.00016438,2]
[335360307,1724159439502,-540.01,0.00016438,2]
[335360308,1724159439511,-508.6277511,0.00016438,2]
[335360309,1724159439521,-320.5,0.00016438,2]
[335360310,1724159439531,-174.4,0.00016438,2]
[335360311,1724159439543,-500.0,0.00016438,2]
[335360313,1724159439554,-500.0,0.00016438,2]
[335360314,1724159439565,-500.0,0.00016438,2]
[335360315,1724159439575,-500.0,0.00016438,2]
[335360316,1724159439584,-500.0,0.00016438,2]
[335360317,1724159439596,-500.0,0.00016438,2]
[335360318,1724159439610,-500.0,0.00016438,2]
[335360320,1724159439620,-500.0,0.00016438,2]
[335360322,1724159439629,-4066.04,0.00016438,2]
[335360323,1724159439640,-500.0,0.00016438,2]
[335360324,1724159439651,-500.0,0.00016438,2]
[335360325,1724159439660,-539.52,0.00016438,2]
[335360326,1724159439670,-507.17862359,0.00016438,2]
[335360327,1724159439680,-252.79,0.00016438,2]
[335360328,1724159439691,-500.0,0.00016438,2]
[335360330,1724159439701,-500.0,0.00016438,2]
[335360332,1724159439710,-500.0,0.00016438,2]
[335360334,1724159439720,-668.38,0.00016438,2]
[335360335,1724159439730,-500.0,0.00016438,2]
[335360336,1724159439739,-500.03166675,0.00016438,2]
[335360337,1724159439754,-555.11710822,0.00016438,2]
[335360338,1724159439763,-500.0,0.00016438,2]
[335360339,1724159439773,-500.0,0.00016438,2]
[335360340,1724159439783,-500.0,0.00016438,2]
[335360341,1724159439792,-500.0,0.00016438,2]
[335360342,1724159439801,-176.55645309,0.00016438,2]
[335360343,1724159439812,-952.38,0.00016438,2]
[335360344,1724159439822,-500.0,0.00016438,2]
[335360345,1724159439832,-598.27507587,0.00016438,2]
[335360346,1724159439842,-500.0,0.00016438,2]
[335360347,1724159439851,-500.0,0.00016438,2]
[335360349,1724159439862,-708.67,0.00016438,2]
[335360351,1724159439875,-500.0,0.00016438,2]
[335360353,1724159439885,-500.0,0.00016438,2]
[335360355,1724159439896,-500.0,0.00016438,2]
[335360357,1724159439905,-500.0,0.00016438,2]
[335360359,1724159439915,-796.39,0.00016438,2]
[335360362,1724159439926,-500.0,0.00016438,2]
[335360364,1724159439937,-500.0,0.00016438,2]
[335360366,1724159439948,-500.0,0.00016438,2]
[335360368,1724159439957,-500.0,0.00016438,2]
[335360370,1724159439966,-500.0,0.00016438,2]
[335360372,1724159439979,-500.0,0.00016438,2]
[335360374,1724159439988,-500.0,0.00016438,2]
[335360375,1724159439998,-500.0,0.00016438,2]
[335360378,1724159440009,-200.0,0.00016473,2]
[335360380,1724159440019,-200.0,0.00016473,2]
[335360382,1724159440029,-200.0,0.00016473,2]
[335360383,1724159440040,-150.112236,0.000167,2]
[335360384,1724159440050,-500.0,0.00016712,2]
[335360385,1724159440061,-500.0,0.00016712,2]
[335360386,1724159440071,-500.0,0.00016712,2]
[335360387,1724159440081,-500.0,0.00016712,2]
[335360389,1724159440091,-704.48,0.00016712,2]
[335360391,1724159440102,-1211.22,0.00016712,2]
[335360392,1724159440112,-500.0,0.00016712,2]
[335360393,1724159440123,-1765.31467839,0.00016712,2]
[335360394,1724159440133,-508.95852246,0.00016712,2]
[335360395,1724159440145,-500.0,0.00016712,2]
[335360396,1724159440155,-567.02,0.00016712,2]
[335360397,1724159440166,-509.82945483,0.00016712,2]
[335360398,1724159440177,-693.12,0.00016712,2]
[335360399,1724159440186,-609.26081606,0.00016712,2]
[335360400,1724159440197,-500.0,0.00016712,2]
[335360401,1724159440207,-500.0,0.00016712,2]
[335360402,1724159440219,-500.0,0.00016712,2]
[335360403,1724159440228,-500.0,0.00016712,2]
[335360404,1724159440238,-500.0,0.00016712,2]
[335360405,1724159440249,-500.0,0.00016712,2]
[335360406,1724159440261,-574.57,0.00016712,2]
[335360407,1724159440271,-500.0,0.00016712,2]
[335360408,1724159440282,-1361.9,0.00016712,2]
[335360409,1724159440293,-500.0,0.00016712,2]
[335360410,1724159440304,-500.0,0.00016712,2]
[335360411,1724159440316,-500.0,0.00016712,2]
[335360412,1724159440326,-500.0,0.00016712,2]
[335360413,1724159440336,-500.0,0.00016712,2]
[335360414,1724159440347,-1429.79,0.00016712,2]
[335360415,1724159440358,-500.0,0.00016712,2]
[335360416,1724159440368,-844.91,0.00016712,2]
[335360417,1724159440378,-500.0,0.00016712,2]
[335360418,1724159440388,-500.0,0.00016712,2]
[335360419,1724159440398,-500.0,0.00016712,2]
[335360420,1724159440407,-500.0,0.00016712,2]
[335360421,1724159440417,-500.0,0.00016712,2]
[335360422,1724159440428,-353.51084828,0.00016712,2]
[335360423,1724159440439,-500.0,0.00016712,2]
[335360424,1724159440449,-932.56,0.00016712,2]
[335360425,1724159440459,-500.0,0.00016712,2]
[335360426,1724159440469,-500.0,0.00016712,2]
[335360427,1724159440478,-500.0,0.00016712,2]
[335360428,1724159440487,-500.0,0.00016712,2]
[335360429,1724159440497,-500.0,0.00016712,2]
[335360430,1724159440506,-500.0,0.00016712,2]
[335360431,1724159440517,-500.0,0.00016712,2]
[335360432,1724159440529,-500.0,0.00016712,2]
[335360433,1724159440540,-500.0,0.00016712,2]
[335360434,1724159440551,-500.0,0.00016712,2]
[335360435,1724159440563,-500.0,0.00016712,2]
[335360436,1724159440574,-500.0,0.00016712,2]
[335360437,1724159440585,-506.60114237,0.00016712,2]
[335360438,1724159440595,-2356.88,0.00016712,2]
[335360439,1724159440609,-480.30238347,0.00016712,2]
[335360440,1724159440620,-500.0,0.00016712,2]
[335360441,1724159440632,-500.0,0.00016712,2]
[335360442,1724159440643,-325.07954754,0.00016712,2]
[335360443,1724159440655,-462.83761311,0.00016712,2]
[335360444,1724159440668,-509.04297039,0.00016712,2]
[335360445,1724159440681,-205.77158943,0.00016712,2]
[335360446,1724159440692,-500.0,0.00016712,2]
[335360447,1724159440704,-500.0,0.00016712,2]
[335360448,1724159440714,-500.0,0.00016712,2]
[335360449,1724159440724,-540.01,0.00016712,2]
[335360450,1724159440736,-500.0,0.00016712,2]
[335360451,1724159440748,-500.0,0.00016712,2]
[335360452,1724159440758,-500.0,0.00016712,2]
[335360453,1724159440769,-500.0,0.00016712,2]
[335360454,1724159440780,-4066.04,0.00016712,2]
[335360455,1724159440793,-500.0,0.00016712,2]
[335360456,1724159440804,-500.0,0.00016712,2]
[335360457,1724159440815,-539.52,0.00016712,2]
[335360458,1724159440827,-500.0,0.00016712,2]
[335360459,1724159440839,-500.0,0.00016712,2]
[335360460,1724159440852,-500.0,0.00016712,2]
[335360461,1724159440862,-668.38,0.00016712,2]
[335360462,1724159440872,-588.1015893,0.00016712,2]
[335360463,1724159440883,-513.96222773,0.00016712,2]
[335360464,1724159440894,-500.0,0.00016712,2]
[335360465,1724159440905,-952.38,0.00016712,2]
[335360466,1724159440914,-480.35904781,0.00016712,2]
[335360467,1724159440924,-500.0,0.00016712,2]
[335360468,1724159440936,-500.0,0.00016712,2]
[335360469,1724159440947,-708.67,0.00016712,2]
[335360470,1724159440957,-500.0,0.00016712,2]
[335360471,1724159440966,-500.0,0.00016712,2]
[335360472,1724159440975,-500.0,0.00016712,2]
[335360473,1724159440984,-796.39,0.00016712,2]
[335360474,1724159440995,-500.0,0.00016712,2]
[335360475,1724159441004,-500.0,0.00016712,2]
[335360476,1724159441013,-500.0,0.00016712,2]
[335360477,1724159441024,-500.0,0.00016712,2]
[335360478,1724159441035,-500.0,0.00016712,2]
[335360479,1724159441044,-500.0,0.00016712,2]
[335360480,1724159441055,-356.2,0.00016836,2]
[335360481,1724159441065,-160.7,0.00016836,2]
[335360482,1724159441076,-506.83749623,0.00016986,2]
[335360483,1724159441085,-500.0,0.00016986,2]
[335360484,1724159441095,-420.00257582,0.00016986,2]
[335360485,1724159441104,-500.0,0.00016986,2]
[335360486,1724159441114,-704.48,0.00016986,2]
[335360487,1724159441123,-1211.22,0.00016986,2]
[335360488,1724159441133,-500.0,0.00016986,2]
[335360489,1724159441143,-500.0,0.00016986,2]
[335360490,1724159441153,-567.02,0.00016986,2]
[335360491,1724159441162,-693.12,0.00016986,2]
[335360492,1724159441172,-500.0,0.00016986,2]
[335360493,1724159441181,-500.0,0.00016986,2]
[335360494,1724159441191,-500.0,0.00016986,2]
[335360495,1724159441200,-648.70014127,0.00016986,2]
[335360496,1724159441209,-500.0,0.00016986,2]
[335360497,1724159441218,-500.0,0.00016986,2]
[335360498,1724159441228,-500.0,0.00016986,2]
[335360499,1724159441238,-1361.9,0.00016986,2]
[335360500,1724159441249,-500.0,0.00016986,2]
[335360501,1724159441260,-500.0,0.00016986,2]
[335360502,1724159441270,-500.0,0.00016986,2]
[335360503,1724159441279,-500.0,0.00016986,2]
[335360504,1724159441288,-500.0,0.00016986,2]
[335360505,1724159441298,-1429.79,0.00016986,2]
[335360506,1724159441307,-500.0,0.00016986,2]
[335360507,1724159441320,-844.91,0.00016986,2]
[335360508,1724159441330,-500.0,0.00016986,2]
[335360509,1724159441339,-489.35367587,0.00016986,2]
[335360510,1724159441349,-500.0,0.00016986,2]
[335360511,1724159441358,-500.0,0.00016986,2]
[335360512,1724159441368,-500.0,0.00016986,2]
[335360513,1724159441377,-932.56,0.00016986,2]
[335360514,1724159441386,-500.0,0.00016986,2]
[335360515,1724159441396,-500.0,0.00016986,2]
[335360516,1724159441406,-500.0,0.00016986,2]
[335360517,1724159441415,-500.0,0.00016986,2]
[335360518,1724159441424,-158.59978058,0.00016986,2]
[335360519,1724159441434,-500.0,0.00016986,2]
[335360520,1724159441444,-500.0,0.00016986,2]
[335360521,1724159441453,-500.0,0.00016986,2]
[335360522,1724159441463,-500.0,0.00016986,2]
[335360523,1724159441472,-500.0,0.00016986,2]
[335360524,1724159441482,-500.0,0.00016986,2]
[335360525,1724159441491,-500.0,0.00016986,2]
[335360526,1724159441500,-2356.88,0.00016986,2]
[335360527,1724159441509,-500.0,0.00016986,2]
[335360528,1724159441519,-172.49134743,0.00016986,2]
[335360529,1724159441529,-500.0,0.00016986,2]
[335360530,1724159441540,-500.0,0.00016986,2]
[335360531,1724159441550,-500.0,0.00016986,2]
[335360532,1724159441559,-540.01,0.00016986,2]
[335360533,1724159441569,-291.35,0.00016986,2]
[335360534,1724159441578,-500.0,0.00016986,2]
[335360535,1724159441587,-500.0,0.00016986,2]
[335360536,1724159441596,-500.0,0.00016986,2]
[335360537,1724159441611,-4066.04,0.00016986,2]
[335360538,1724159441620,-500.0,0.00016986,2]
[335360539,1724159441631,-500.0,0.00016986,2]
[335360540,1724159441641,-539.52,0.00016986,2]
[335360541,1724159441654,-500.0,0.00016986,2]
[335360542,1724159441666,-406.91929311,0.00016986,2]
[335360543,1724159441677,-500.0,0.00016986,2]
[335360544,1724159441689,-668.38,0.00016986,2]
[335360545,1724159441806,-500.0,0.00016986,2]
[335360546,1724159441819,-952.38,0.00016986,2]
[335360547,1724159441829,-500.0,0.00016986,2]
[335360548,1724159441838,-500.0,0.00016986,2]
[335360549,1724159441849,-708.67,0.00016986,2]
[335360550,1724159441861,-579.37597392,0.00016986,2]
[335360551,1724159441871,-500.0,0.00016986,2]
[335360552,1724159441881,-500.0,0.00016986,2]
[335360553,1724159441892,-796.39,0.00016986,2]
[335360554,1724159441901,-500.0,0.00016986,2]
[335360555,1724159441911,-500.0,0.00016986,2]
[335360556,1724159441921,-500.0,0.00016986,2]
[335360557,1724159441930,-213.1,0.00016986,2]
[335360558,1724159441939,-189.27118983,0.00016986,2]
[335360559,1724159441950,-1000.0,0.00017,17]
[335360560,1724159441961,-1415.0,0.0001712,2]
[335360561,1724159441972,-7726.0,0.0001712,2]
[335360562,1724159441984,-300.0,0.000172,6]
[335360563,1724159441996,-356.2,0.00017235,2]
[335360564,1724159442007,-160.7,0.00017235,2]
[335360565,1724159442018,-500.0,0.0001726,2]
[335360566,1724159442028,-500.0,0.0001726,2]
[335360567,1724159442039,-704.48,0.0001726,2]
[335360568,1724159442049,-1211.22,0.0001726,2]
[335360569,1724159442061,-500.0,0.0001726,2]
[335360570,1724159442071,-500.0,0.0001726,2]
[335360571,1724159442082,-567.02,0.0001726,2]
[335360572,1724159442093,-693.12,0.0001726,2]
[335360573,1724159442104,-500.0,0.0001726,2]
[335360574,1724159442114,-500.0,0.0001726,2]
[335360575,1724159442125,-500.0,0.0001726,2]
[335360576,1724159442134,-1361.9,0.0001726,2]
[335360577,1724159442143,-500.0,0.0001726,2]
[335360578,1724159442154,-500.0,0.0001726,2]
[335360579,1724159442164,-436.62837868,0.0001726,2]
[335360580,1724159442174,-1429.79,0.0001726,2]
[335360581,1724159442184,-500.0,0.0001726,2]
[335360582,1724159442195,-844.91,0.0001726,2]
[335360583,1724159442205,-500.0,0.0001726,2]
[335360584,1724159442214,-500.0,0.0001726,2]
[335360585,1724159442225,-266.7120858,0.0001726,2]
[335360586,1724159442235,-500.0,0.0001726,2]
[335360587,1724159442246,-932.56,0.0001726,2]
[335360588,1724159442258,-500.0,0.0001726,2]
[335360589,1724159442267,-500.0,0.0001726,2]
[335360590,1724159442278,-500.0,0.0001726,2]
[335360591,1724159442288,-500.0,0.0001726,2]
[335360592,1724159442299,-500.0,0.0001726,2]
[335360593,1724159442309,-500.0,0.0001726,2]
[335360594,1724159442319,-500.0,0.0001726,2]
[335360595,1724159442328,-500.0,0.0001726,2]
[335360596,1724159442339,-500.0,0.0001726,2]
[335360597,1724159442350,-500.0,0.0001726,2]
[335360598,1724159442360,-500.0,0.0001726,2]
[335360599,1724159442371,-2356.88,0.0001726,2]
[335360600,1724159442381,-500.0,0.0001726,2]
[335360601,1724159442391,-500.0,0.0001726,2]
[335360602,1724159442402,-500.0,0.0001726,2]
[335360603,1724159442414,-500.0,0.0001726,2]
[335360604,1724159442426,-540.01,0.0001726,2]
[335360605,1724159442436,-500.0,0.0001726,2]
[335360606,1724159442446,-500.0,0.0001726,2]
[335360607,1724159442458,-500.0,0.0001726,2]
[335360608,1724159442468,-4066.04,0.0001726,2]
[335360609,1724159442478,-500.0,0.0001726,2]
[335360610,1724159442490,-500.0,0.0001726,2]
[335360611,1724159442499,-539.52,0.0001726,2]
[335360612,1724159442508,-500.0,0.0001726,2]
[335360613,1724159442517,-500.0,0.0001726,2]
[335360614,1724159442528,-668.38,0.0001726,2]
[335360615,1724159442538,-551.74152002,0.0001726,2]
[335360616,1724159442548,-952.38,0.0001726,2]
[335360617,1724159442558,-500.0,0.0001726,2]
[335360618,1724159442577,-500.0,0.0001726,2]
[335360619,1724159442587,-708.67,0.0001726,2]
[335360620,1724159442598,-525.80407988,0.0001726,2]
[335360621,1724159442610,-500.0,0.0001726,2]
[335360622,1724159442621,-796.39,0.0001726,2]
[335360623,1724159442631,-500.0,0.0001726,2]
[335360624,1724159442642,-500.0,0.0001726,2]
[335360625,1724159442652,-514.19550752,0.0001726,2]
[335360626,1724159442665,-150.112233,0.000173,2]
[335360627,1724159442676,-5132.16859192,0.0001742,2]
[335360628,1724159442689,-500.0,0.00017534,2]
[335360629,1724159442700,-275.97082633,0.00017534,2]
[335360630,1724159442711,-704.48,0.00017534,2]
[335360631,1724159442722,-1211.22,0.00017534,2]
[335360632,1724159442732,-500.0,0.00017534,2]
[335360633,1724159442744,-500.0,0.00017534,2]
[335360634,1724159442754,-567.02,0.00017534,2]
[335360635,1724159442764,-693.12,0.00017534,2]
[335360636,1724159442775,-500.0,0.00017534,2]
[335360637,1724159442785,-287.49000296,0.00017534,2]
[335360638,1724159442796,-500.0,0.00017534,2]
[335360639,1724159442807,-1361.9,0.00017534,2]
[335360640,1724159442819,-500.0,0.00017534,2]
[335360642,1724159442830,-1429.79,0.00017534,2]
[335360644,1724159442840,-500.0,0.00017534,2]
[335360646,1724159442850,-844.91,0.00017534,2]
[335360648,1724159442860,-500.0,0.00017534,2]
[335360649,1724159442871,-500.0,0.00017534,2]
[335360650,1724159442882,-932.56,0.00017534,2]
[335360651,1724159442895,-500.0,0.00017534,2]
[335360652,1724159442904,-500.0,0.00017534,2]
[335360653,1724159442913,-500.0,0.00017534,2]
[335360654,1724159442924,-500.0,0.00017534,2]
[335360655,1724159442934,-283.11063343,0.00017534,2]
[335360656,1724159442944,-500.0,0.00017534,2]
[335360657,1724159442955,-500.0,0.00017534,2]
[335360658,1724159442965,-500.0,0.00017534,2]
[335360659,1724159442975,-500.0,0.00017534,2]
[335360660,1724159442986,-2356.88,0.00017534,2]
[335360661,1724159442999,-500.0,0.00017534,2]
[335360662,1724159443010,-500.0,0.00017534,2]
[335360663,1724159443022,-500.0,0.00017534,2]
[335360664,1724159443032,-500.0,0.00017534,2]
[335360665,1724159443042,-540.01,0.00017534,2]
[335360666,1724159443053,-500.0,0.00017534,2]
[335360667,1724159443063,-500.0,0.00017534,2]
[335360668,1724159443073,-4066.04,0.00017534,2]
[335360669,1724159443084,-450.23678246,0.00017534,2]
[335360670,1724159443094,-500.0,0.00017534,2]
[335360671,1724159443104,-539.52,0.00017534,2]
[335360672,1724159443115,-500.0,0.00017534,2]
[335360673,1724159443124,-668.38,0.00017534,2]
[335360674,1724159443133,-500.0,0.00017534,2]
[335360675,1724159443145,-952.38,0.00017534,2]
[335360676,1724159443155,-485.75164508,0.00017534,2]
[335360677,1724159443164,-500.0,0.00017534,2]
[335360678,1724159443173,-708.67,0.00017534,2]
[335360680,1724159443184,-500.0,0.00017534,2]
[335360682,1724159443193,-796.39,0.00017534,2]
[335360683,1724159443204,-500.0,0.00017534,2]
[335360684,1724159443214,-500.0,0.00017534,2]
[335360685,1724159443224,-356.2,0.00017633,2]
[335360686,1724159443234,-160.7,0.00017633,2]
[335360687,1724159443245,-696.2303353,0.0001764,2]
[335360688,1724159443255,-150.112233,0.000178,2]
[335360689,1724159443265,-500.0,0.00017808,2]
[335360690,1724159443275,-704.48,0.00017808,2]
[335360691,1724159443285,-1211.22,0.00017808,2]
[335360692,1724159443294,-500.0,0.00017808,2]
[335360693,1724159443304,-500.0,0.00017808,2]
[335360694,1724159443314,-567.02,0.00017808,2]
[335360696,1724159443324,-693.12,0.00017808,2]
[335360697,1724159443334,-500.0,0.00017808,2]
[335360698,1724159443346,-500.0,0.00017808,2]
[335360699,1724159443356,-1361.9,0.00017808,2]
[335360700,1724159443367,-500.0,0.00017808,2]
[335360701,1724159443379,-1429.79,0.00017808,2]
[335360702,1724159443394,-500.0,0.00017808,2]
[335360703,1724159443408,-844.91,0.00017808,2]
[335360704,1724159443422,-500.0,0.00017808,2]
[335360705,1724159443435,-500.0,0.00017808,2]
[335360706,1724159443448,-932.56,0.00017808,2]
[335360707,1724159443459,-500.0,0.00017808,2]
[335360708,1724159443473,-500.0,0.00017808,2]
[335360709,1724159443488,-500.0,0.00017808,2]
[335360710,1724159443501,-500.0,0.00017808,2]
[335360711,1724159443513,-500.0,0.00017808,2]
[335360712,1724159443527,-500.0,0.00017808,2]
[335360713,1724159443539,-2356.88,0.00017808,2]
[335360714,1724159443553,-305.249749,0.00017808,2]
[335360715,1724159443565,-500.0,0.00017808,2]
[335360716,1724159443576,-500.0,0.00017808,2]
[335360717,1724159443588,-500.0,0.00017808,2]
[335360718,1724159443599,-540.01,0.00017808,2]
[335360719,1724159443616,-500.0,0.00017808,2]
[335360720,1724159443629,-500.0,0.00017808,2]
[335360721,1724159443641,-4066.04,0.00017808,2]
[335360722,1724159443654,-500.0,0.00017808,2]
[335360723,1724159443666,-539.52,0.00017808,2]
[335360724,1724159443679,-500.0,0.00017808,2]
[335360725,1724159443690,-668.38,0.00017808,2]
[335360726,1724159443703,-406.73689988,0.00017808,2]
[335360727,1724159443718,-952.38,0.00017808,2]
[335360728,1724159443731,-500.0,0.00017808,2]
[335360729,1724159443745,-708.67,0.00017808,2]
[335360730,1724159443757,-500.0,0.00017808,2]
[335360731,1724159443769,-796.39,0.00017808,2]
[335360732,1724159443780,-500.0,0.00017808,2]
[335360733,1724159443793,-5329.36596513,0.00017829,2]
[335360734,1724159443804,-401.1978182,0.00017842,2]
[335360735,1724159443817,-400.0,0.00017842,2]
[335360736,1724159443829,-150.0,0.00017855,2]
[335360737,1724159443841,-356.2,0.00018032,2]
[335360738,1724159443855,-160.7,0.00018032,2]
[335360739,1724159443868,-305.86356289,0.00018082,2]
[335360740,1724159443882,-170.02363471,0.00018082,2]
[335360741,1724159443894,-263.34760791,0.00018082,2]
[335360742,1724159443905,-1671.98997101,0.00018082,2]
[335360743,1724159443917,-886.51060802,0.00018082,2]
[335360744,1724159443932,-500.0,0.00018082,2]
[335360745,1724159443945,-704.48,0.00018082,2]
[335360746,1724159443958,-1211.22,0.00018082,2]
[335360747,1724159443971,-608.86644204,0.00018082,2]
[335360748,1724159443985,-1731.28913071,0.00018082,2]
[335360749,1724159443997,-356.69936343,0.00018082,2]
[335360750,1724159444007,-500.0,0.00018082,2]
[335360751,1724159444019,-567.02,0.00018082,2]
[335360752,1724159444030,-693.12,0.00018082,2]
[335360753,1724159444043,-500.0,0.00018082,2]
[335360754,1724159444056,-218.62299037,0.00018082,2]
[335360755,1724159444070,-3738.18619151,0.00018082,2]
[335360756,1724159444084,-500.0,0.00018082,2]
[335360757,1724159444097,-1361.9,0.00018082,2]
[335360758,1724159444108,-500.0,0.00018082,2]
[335360759,1724159444120,-1429.79,0.00018082,2]
[335360760,1724159444136,-497.27218882,0.00018082,2]
[335360761,1724159444147,-844.91,0.00018082,2]
[335360762,1724159444159,-500.0,0.00018082,2]
[335360763,1724159444170,-406.80250803,0.00018082,2]
[335360764,1724159444182,-932.56,0.00018082,2]
[335360765,1724159444192,-404.65460675,0.00018082,2]
[335360766,1724159444203,-500.0,0.00018082,2]
[335360767,1724159444215,-500.0,0.00018082,2]
[335360768,1724159444225,-554.54478804,0.00018082,2]
[335360769,1724159444236,-500.0,0.00018082,2]
[335360770,1724159444246,-500.0,0.00018082,2]
[335360771,1724159444257,-500.0,0.00018082,2]
[335360772,1724159444267,-2356.88,0.00018082,2]
[335360773,1724159444279,-500.0,0.00018082,2]
[335360774,1724159444289,-500.0,0.00018082,2]
[335360775,1724159444299,-636.75669908,0.00018082,2]
[335360776,1724159444310,-540.01,0.00018082,2]
[335360777,1724159444327,-500.0,0.00018082,2]
[335360778,1724159444337,-537.10252462,0.00018082,2]
[335360779,1724159444348,-4066.04,0.00018082,2]
[335360780,1724159444359,-500.0,0.00018082,2]
[335360781,1724159444374,-539.52,0.00018082,2]
[335360782,1724159444385,-500.0,0.00018082,2]
[335360783,1724159444395,-668.38,0.00018082,2]
[335360784,1724159444406,-952.38,0.00018082,2]
[335360785,1724159444416,-500.0,0.00018082,2]
[335360786,1724159444427,-708.67,0.00018082,2]
[335360787,1724159444437,-500.0,0.00018082,2]
[335360788,1724159444447,-796.39,0.00018082,2]
[335360789,1724159444458,-500.0,0.00018082,2]
[335360790,1724159444468,-1631.08152818,0.000181,2]
[335360791,1724159444478,-1631.08152817,0.000181,2]
[335360792,1724159444490,-1631.08152817,0.000181,2]
[335360793,1724159444501,-1631.08152817,0.000181,2]
[335360794,1724159444512,-2322.68684084,0.000181,2]
[335360795,1724159444522,-2322.68684084,0.000181,2]
[335360796,1724159444536,-2322.68684084,0.000181,2]
[335360797,1724159444547,-2322.68684084,0.000181,2]
[335360798,1724159444557,-500.0,0.00018214,2]
[335360799,1724159444569,-800.0,0.00018258,2]
[335360800,1724159444579,-500.0,0.00018281,2]
[335360801,1724159444589,-800.0,0.00018288,2]
[335360802,1724159444600,-800.0,0.00018317,2]
[335360803,1724159444614,-500.00927083,0.00018356,2]
[335360804,1724159444625,-704.48,0.00018356,2]
[335360805,1724159444635,-1211.22,0.00018356,2]
[335360806,1724159444647,-500.0,0.00018356,2]
[335360807,1724159444659,-567.02,0.00018356,2]
[335360808,1724159444670,-693.12,0.00018356,2]
[335360809,1724159444682,-500.0,0.00018356,2]
[335360810,1724159444693,-500.0,0.00018356,2]
[335360811,1724159444704,-1361.9,0.00018356,2]
[335360812,1724159444715,-500.0,0.00018356,2]
[335360813,1724159444726,-1429.79,0.00018356,2]
[335360814,1724159444736,-844.91,0.00018356,2]